Workbook

Sheet Лист1
D1: =MAX(D3:D30)+1 -> 773 | BF1: 1 | BG1: =ROUND(SUM(BG3:BG30),0) -> 0 | BH1: =ROUND(SUM(BH3:BH30),0) -> 0 | BI1: =ROUND(SUM(BI3:BI30),0) -> 0 | BJ1: =ROUND(SUM(BJ3:BJ30),0) -> 0 | BK1: =ROUND(SUM(BK3:BK30),0) -> 0 | BM1: сыр | BQ1: 7
A2: Краткое наименовние | B2: Наименование | C2: Агрегат | D2: Food ID | E2: Группа | F2: Жиры | G2: Белки | H2: Углеводы | I2: Алкоголь | J2: Калорийность 100 гр | K2: Нетто штуки | L2: Калорийность штуки | M2: Цена штуки | N2: Жиры штуки | O2: Белки штуки | P2: Углеводы штуки | Q2: Алкоголь штуки | R2: Проверка Мин | S2: Проверка Макс | T2: Источник | U2: Для заметок 1 | V2: 2014-07-01 | W2: 2014-07-02 | X2: 2014-07-03 | Y2: 2014-07-04 | Z2: 2014-07-05 | AA2: 2014-07-06 | AB2: 2014-07-07 | AC2: 2014-07-08 | AD2: 2014-07-09 | AE2: 2014-07-10 | AF2: 2014-07-11 | AG2: 2014-07-12 | AH2: 2014-07-13 | AI2: 2014-07-14 | AJ2: 2014-07-15 | AK2: 2014-07-16 | AL2: 2014-07-17 | AM2: 2014-07-18 | AN2: 2014-07-19 | AO2: 2014-07-20 | AP2: 2014-07-21 | AQ2: 2014-07-22 | AR2: 2014-07-23 | AS2: 2014-07-24 | AT2: 2014-07-25 | AU2: 2014-07-26 | AV2: 2014-07-27 | AW2: 2014-07-28 | AX2: 2014-07-29 | AY2: 2014-07-30 | AZ2: 2014-07-31 | BA2: 2014-08-01 | BB2: 2014-08-02 | BC2: 2014-08-03 | BD2: 2014-08-04 | BE2: 2014-08-05 | BF2: Текущий | BG2: ккал | BH2: гр | BI2: жиры, гр | BJ2: белки, гр | BK2: углеводы, гр | BL2: Группы | BM2: Поиск по наименованию | BN2: Отметка | BO2: Вес отмеч. | BP2: Ккал отмеч. | BQ2: Меню "последних дней" | BR2: СУММА ДНЯ | BS2: подход 1 | BT2: подход 2 | BU2: подход 3 | BV2: подход 4 | BW2: подход 5 | BX2: подход 6 | BY2: подход 7 | BZ2: подход 8 | CA2: подход 9 | CB2: подход 10
A3: Доп.калории (нарушения или в гостях) | B3: Доп.калории (нарушения или в гостях) | C3: ? | D3: 1 | E3: Доп | K3: 1 | L3: 1 | BF3: =OFFSET(BF3,,-$BF$1) -> 0 | BG3: =$L3*BF3 -> 0 | BL3: =E3 -> Доп | BM3: =A3 -> Доп.калории (нарушения или в гостях) | BQ3: =SUM(OFFSET(BF3,,-$BQ$1,,$BQ$1))>0 -> FALSE | BR3: =IF(COUNT(BS3:CB3)=0,"",ROUND(SUM(BS3:CB3)/(10*K3),3)) -> 
A4: Ряженка 4% БК | B4: Ряженка 4% "Большая кружка" (720 г) | C4: Ж | D4: 2 | E4: Сыры | F4: 4 | G4: 2.8 | H4: 4.2 | J4: 64 | K4: 100 | L4: =ROUND(J4*K4/100,) -> 64 | M4: 35 | N4: =ROUND(F4*K4/100,1) -> 4 | O4: =ROUND(G4*K4/100,1) -> 2.8 | P4: =ROUND(H4*K4/100,1) -> 4.2 | Q4: =ROUND(I4*K4/100,1) -> 0 | R4: =F4*9+G4*4+H4*4+I4*7 -> 64 | S4: =F4*9.3+G4*4.1+H4*4.1+I4*7.1 -> 65.9 | BF4: =OFFSET(BF4,,-$BF$1) -> 0 | BG4: 0 | BH4: =$K4*BF4 -> 0 | BI4: =$N4*BF4 -> 0 | BJ4: =$O4*BF4 -> 0 | BK4: =$P4*BF4 -> 0 | BL4: =E4 -> Сыры | BM4: =TRIM(A4) -> Ряженка 4% БК | BO4: =IF(BN4<>0,BH4,0) -> 0 | BP4: =IF(BN4<>0,BG4,0) -> 0 | BQ4: =SUM(OFFSET(BF4,,-$BQ$1,,$BQ$1))>0 -> FALSE | BR4: =IF(COUNT(BS4:CB4)=0,"",ROUND(SUM(BS4:CB4)/(10*K4),3)) -> 
A5: Творог "Валио" 2% рассыпчатый | B5: Творожный сыр "Рассыпчатый" 2% (Валио) (400 г) | C5: Т | D5: 3 | E5: Сыры | F5: 2 | G5: 13 | H5: 2 | J5: 80 | K5: 100 | L5: 80 | M5: 110 | N5: =ROUND(F5*K5/100,1) -> 2 | O5: =ROUND(G5*K5/100,1) -> 13 | P5: =ROUND(H5*K5/100,1) -> 2 | Q5: =ROUND(I5*K5/100,1) -> 0 | R5: =F5*9+G5*4+H5*4+I5*7 -> 78 | S5: =F5*9.3+G5*4.1+H5*4.1+I5*7.1 -> 80.1 | BF5: =OFFSET(BF5,,-$BF$1) -> 0 | BG5: 0 | BH5: 0 | BI5: =$N5*BF5 -> 0 | BJ5: =$O5*BF5 -> 0 | BK5: =$P5*BF5 -> 0 | BL5: =E5 -> Сыры | BM5: =TRIM(A5) -> Творог "Валио" 2% рассыпчатый | BO5: =IF(BN5<>0,BH5,0) -> 0 | BP5: =IF(BN5<>0,BG5,0) -> 0 | BQ5: =SUM(OFFSET(BF5,,-$BQ$1,,$BQ$1))>0 -> FALSE | BR5: =IF(COUNT(BS5:CB5)=0,"",ROUND(SUM(BS5:CB5)/(10*K5),3)) -> 
A6: Творог "Сваля" 0% | B6: Литовский обезжиренный творог "Сваля" (300 г) | C6: Т | D6: 4 | E6: Сыры | F6: 0.5 | G6: 17 | H6: 3.6 | J6: 86 | K6: 100 | L6: 86 | M6: 86 | N6: 0.5 | O6: 17 | P6: 3.6 | Q6: 0 | R6: 86.9 | S6: 89.11 | BF6: =OFFSET(BF6,,-$BF$1) -> 0 | BG6: 0 | BH6: 0 | BI6: =$N6*BF6 -> 0 | BJ6: =$O6*BF6 -> 0 | BK6: =$P6*BF6 -> 0 | BL6: =E6 -> Сыры | BM6: =TRIM(A6) -> Творог "Сваля" 0% | BO6: =IF(BN6<>0,BH6,0) -> 0 | BP6: =IF(BN6<>0,BG6,0) -> 0 | BQ6: =SUM(OFFSET(BF6,,-$BQ$1,,$BQ$1))>0 -> FALSE | BR6: =IF(COUNT(BS6:CB6)=0,"",ROUND(SUM(BS6:CB6)/(10*K6),3)) -> 
A7: Творог 1,8% (Дмитровский МЗ) | B7: Творог 1,8% (Дмитровский МЗ) | C7: Т | D7: 659 | E7: Сыры | F7: 1.8 | G7: 18 | H7: 3.3 | J7: 101 | K7: 100 | L7: 101 | M7: 50 | N7: 1.8 | O7: 18 | P7: 3.3 | Q7: 0 | R7: 101.4 | S7: 104.07 | BF7: =OFFSET(BF7,,-$BF$1) -> 0 | BG7: 0 | BH7: 0 | BI7: =$N7*BF7 -> 0 | BJ7: =$O7*BF7 -> 0 | BK7: =$P7*BF7 -> 0 | BL7: =E7 -> Сыры | BM7: =TRIM(A7) -> Творог 1,8% (Дмитровский МЗ) | BO7: =IF(BN7<>0,BH7,0) -> 0 | BP7: =IF(BN7<>0,BG7,0) -> 0 | BQ7: =SUM(OFFSET(BF7,,-$BQ$1,,$BQ$1))>0 -> FALSE | BR7: =IF(COUNT(BS7:CB7)=0,"",ROUND(SUM(BS7:CB7)/(10*K7),3)) -> 
A8: Зернистый творог Сваля с фруктовым наполнителем (клубника) | B8: Зернистый творог Сваля с фруктовым наполнителем (клубника) | C8: Т | D8: 689 | E8: Наруш | F8: 6.2 | G8: 7.7 | H8: 14.1 | J8: 143 | K8: 100 | L8: 143 | M8: 50 | N8: 6.2 | O8: 7.7 | P8: 14.1 | Q8: 0 | R8: 143 | S8: 147.04 | BF8: =OFFSET(BF8,,-$BF$1) -> 0 | BG8: 0 | BH8: 0 | BI8: =$N8*BF8 -> 0 | BJ8: =$O8*BF8 -> 0 | BK8: =$P8*BF8 -> 0 | BL8: =E8 -> Наруш | BM8: =TRIM(A8) -> Зернистый творог Сваля с фруктовым наполнителем (клубника) | BO8: =IF(BN8<>0,BH8,0) -> 0 | BP8: =IF(BN8<>0,BG8,0) -> 0 | BQ8: =SUM(OFFSET(BF8,,-$BQ$1,,$BQ$1))>0 -> FALSE | BR8: =IF(COUNT(BS8:CB8)=0,"",ROUND(SUM(BS8:CB8)/(10*K8),3)) -> 
A9: Творожная масса 4,5% с изюмом (МЗ Пискаревский) | B9: Творожная масса 4,5% с изюмом (МЗ Пискаревский) | C9: Т | D9: 667 | E9: Наруш | F9: 4.5 | G9: 12.8 | H9: 19 | J9: 168 | K9: 100 | L9: 168 | M9: 50 | N9: 4.5 | O9: 12.8 | P9: 19 | Q9: 0 | R9: 167.7 | S9: 172.23 | BF9: =OFFSET(BF9,,-$BF$1) -> 0 | BG9: 0 | BH9: 0 | BI9: =$N9*BF9 -> 0 | BJ9: =$O9*BF9 -> 0 | BK9: =$P9*BF9 -> 0 | BL9: =E9 -> Наруш | BM9: =TRIM(A9) -> Творожная масса 4,5% с изюмом (МЗ Пискаревский) | BO9: =IF(BN9<>0,BH9,0) -> 0 | BP9: =IF(BN9<>0,BG9,0) -> 0 | BQ9: =SUM(OFFSET(BF9,,-$BQ$1,,$BQ$1))>0 -> FALSE | BR9: =IF(COUNT(BS9:CB9)=0,"",ROUND(SUM(BS9:CB9)/(10*K9),3)) -> 
A10: Творожная масса 23% "Особая" | B10: Творожная масса 23% (100 г) "Особая" с изюмом | C10: Т | D10: 5 | E10: Наруш | F10: 23 | G10: 7.1 | H10: 27.1 | J10: 345 | K10: 100 | L10: 345 | M10: 50 | N10: 23 | O10: 7.1 | P10: 27.1 | Q10: 0 | R10: 343.8 | S10: 354.12 | T10: http://health-diet.ru/base_of_food/sostav/1023.php | BF10: =OFFSET(BF10,,-$BF$1) -> 0 | BG10: 0 | BH10: 0 | BI10: =$N10*BF10 -> 0 | BJ10: =$O10*BF10 -> 0 | BK10: =$P10*BF10 -> 0 | BL10: =E10 -> Наруш | BM10: =TRIM(A10) -> Творожная масса 23% "Особая" | BO10: =IF(BN10<>0,BH10,0) -> 0 | BP10: =IF(BN10<>0,BG10,0) -> 0 | BQ10: =SUM(OFFSET(BF10,,-$BQ$1,,$BQ$1))>0 -> FALSE | BR10: =IF(COUNT(BS10:CB10)=0,"",ROUND(SUM(BS10:CB10)/(10*K10),3)) -> 
A11: Творожная масса 23% "Благода" с курагой | B11: Творожная масса 23% "Благода" с курагой | C11: Т | D11: 6 | E11: Наруш | F11: 20.8 | G11: 7.7 | H11: 30.6 | J11: 340 | K11: 100 | L11: 340 | M11: 50 | N11: 20.8 | O11: 7.7 | P11: 30.6 | Q11: 0 | R11: 340.4 | S11: 350.47 | BF11: =OFFSET(BF11,,-$BF$1) -> 0 | BG11: 0 | BH11: 0 | BI11: =$N11*BF11 -> 0 | BJ11: =$O11*BF11 -> 0 | BK11: =$P11*BF11 -> 0 | BL11: =E11 -> Наруш | BM11: =TRIM(A11) -> Творожная масса 23% "Благода" с курагой | BO11: =IF(BN11<>0,BH11,0) -> 0 | BP11: =IF(BN11<>0,BG11,0) -> 0 | BQ11: =SUM(OFFSET(BF11,,-$BQ$1,,$BQ$1))>0 -> FALSE | BR11: =IF(COUNT(BS11:CB11)=0,"",ROUND(SUM(BS11:CB11)/(10*K11),3)) -> 
A12: Крем творожный (Valio) (Тирамису; С ванилью; С лимоном; Королевская ягода; С грушей) | B12: Крем творожный (Valio) (Тирамису; С ванилью; С лимоном; Королевская ягода; С грушей) | C12: Т | D12: 7 | E12: Наруш | F12: 7 | G12: 7.3 | H12: 16 | J12: 160 | K12: 100 | L12: 160 | M12: 50 | N12: 7 | O12: 7.3 | P12: 16 | Q12: 0 | R12: 156.2 | S12: 160.63 | BF12: =OFFSET(BF12,,-$BF$1) -> 0 | BG12: 0 | BH12: 0 | BI12: =$N12*BF12 -> 0 | BJ12: =$O12*BF12 -> 0 | BK12: =$P12*BF12 -> 0 | BL12: =E12 -> Наруш | BM12: =TRIM(A12) -> Крем творожный (Valio) (Тирамису; С ванилью; С лимоном; Королевская ягода; С грушей) | BO12: =IF(BN12<>0,BH12,0) -> 0 | BP12: =IF(BN12<>0,BG12,0) -> 0 | BQ12: =SUM(OFFSET(BF12,,-$BQ$1,,$BQ$1))>0 -> FALSE | BR12: =IF(COUNT(BS12:CB12)=0,"",ROUND(SUM(BS12:CB12)/(10*K12),3)) -> 
A13: Крем Сливочный 15% (Пискаревский) | B13: Крем Сливочный 15% (Пискаревский) | C13: Т | D13: 8 | E13: Наруш | F13: 15 | G13: 4 | H13: 19 | J13: 227 | K13: 100 | L13: 227 | M13: 50 | N13: 15 | O13: 4 | P13: 19 | Q13: 0 | R13: 227 | S13: 233.8 | BF13: =OFFSET(BF13,,-$BF$1) -> 0 | BG13: 0 | BH13: 0 | BI13: =$N13*BF13 -> 0 | BJ13: =$O13*BF13 -> 0 | BK13: =$P13*BF13 -> 0 | BL13: =E13 -> Наруш | BM13: =TRIM(A13) -> Крем Сливочный 15% (Пискаревский) | BO13: =IF(BN13<>0,BH13,0) -> 0 | BP13: =IF(BN13<>0,BG13,0) -> 0 | BQ13: =SUM(OFFSET(BF13,,-$BQ$1,,$BQ$1))>0 -> FALSE | BR13: =IF(COUNT(BS13:CB13)=0,"",ROUND(SUM(BS13:CB13)/(10*K13),3)) -> 
A14: Сырок творож.глазир.с ванилью 16% "Творобушки" | B14: Сырок творож.глазир.с ванилью 16% "Творобушки" | C14: Т | D14: 9 | E14: Наруш | F14: 20.7 | G14: 8.9 | H14: 31.9 | J14: 350 | K14: 100 | L14: =ROUND(J14*K14/100,) -> 350 | M14: 50 | N14: =ROUND(F14*K14/100,1) -> 20.7 | O14: =ROUND(G14*K14/100,1) -> 8.9 | P14: =ROUND(H14*K14/100,1) -> 31.9 | Q14: 0 | R14: 349.5 | S14: 359.79 | BF14: =OFFSET(BF14,,-$BF$1) -> 0 | BG14: 0 | BH14: 0 | BI14: =$N14*BF14 -> 0 | BJ14: =$O14*BF14 -> 0 | BK14: =$P14*BF14 -> 0 | BL14: =E14 -> Наруш | BM14: =TRIM(A14) -> Сырок творож.глазир.с ванилью 16% "Творобушки" | BO14: =IF(BN14<>0,BH14,0) -> 0 | BP14: =IF(BN14<>0,BG14,0) -> 0 | BQ14: =SUM(OFFSET(BF14,,-$BQ$1,,$BQ$1))>0 -> FALSE | BR14: =IF(COUNT(BS14:CB14)=0,"",ROUND(SUM(BS14:CB14)/(10*K14),3)) -> 
A15: Сыр "Филадельфия" 11% с травами | B15: Сыр мягкий "Филадельфия лайт" с травами 11% (175 г) | C15: Т | D15: 10 | E15: Сыры | F15: 10.5 | G15: 7.7 | H15: 5.3 | J15: 152 | K15: 100 | L15: 152 | M15: 145 | N15: 10.5 | O15: 7.7 | P15: 5.3 | Q15: 0 | R15: 146.5 | S15: 150.95 | BF15: =OFFSET(BF15,,-$BF$1) -> 0 | BG15: 0 | BH15: 0 | BI15: =$N15*BF15 -> 0 | BJ15: =$O15*BF15 -> 0 | BK15: =$P15*BF15 -> 0 | BL15: =E15 -> Сыры | BM15: =TRIM(A15) -> Сыр "Филадельфия" 11% с травами | BO15: =IF(BN15<>0,BH15,0) -> 0 | BP15: =IF(BN15<>0,BG15,0) -> 0 | BQ15: =SUM(OFFSET(BF15,,-$BQ$1,,$BQ$1))>0 -> FALSE | BR15: =IF(COUNT(BS15:CB15)=0,"",ROUND(SUM(BS15:CB15)/(10*K15),3)) -> 
A16: Сыр "Филадельфия" 5% | B16: Сыр мягкий "Филадельфия экстра лайт" 5% (175 г) | C16: Т | D16: 11 | E16: Сыры | F16: 4.7 | G16: 11.5 | H16: 5 | J16: 110 | K16: 100 | L16: 110 | M16: 170 | N16: 4.7 | O16: 11.5 | P16: 5 | Q16: 0 | R16: 108.3 | S16: 111.36 | BF16: =OFFSET(BF16,,-$BF$1) -> 0 | BG16: 0 | BH16: 0 | BI16: =$N16*BF16 -> 0 | BJ16: =$O16*BF16 -> 0 | BK16: =$P16*BF16 -> 0 | BL16: =E16 -> Сыры | BM16: =TRIM(A16) -> Сыр "Филадельфия" 5% | BO16: =IF(BN16<>0,BH16,0) -> 0 | BP16: =IF(BN16<>0,BG16,0) -> 0 | BQ16: =SUM(OFFSET(BF16,,-$BQ$1,,$BQ$1))>0 -> FALSE | BR16: =IF(COUNT(BS16:CB16)=0,"",ROUND(SUM(BS16:CB16)/(10*K16),3)) -> 
A17: Сыр "Полар" 5% | B17: Сыр "Валио Полар" 5% полутвердый (300 г) | C17: Т | D17: 12 | E17: Сыры | F17: 5 | G17: 34 | H17: 0 | J17: 180 | K17: 100 | L17: 180 | M17: 145 | N17: 5 | O17: 34 | P17: 0 | Q17: 0 | R17: 181 | S17: 185.9 | W17: 1.006 | X17: 1 | Z17: 0.132 | BF17: =OFFSET(BF17,,-$BF$1) -> 0 | BG17: 0 | BH17: 0 | BI17: =$N17*BF17 -> 0 | BJ17: =$O17*BF17 -> 0 | BK17: =$P17*BF17 -> 0 | BL17: =E17 -> Сыры | BM17: =TRIM(A17) -> Сыр "Полар" 5% | BO17: =IF(BN17<>0,BH17,0) -> 0 | BP17: =IF(BN17<>0,BG17,0) -> 0 | BQ17: =SUM(OFFSET(BF17,,-$BQ$1,,$BQ$1))>0 -> FALSE | BR17: =IF(COUNT(BS17:CB17)=0,"",ROUND(SUM(BS17:CB17)/(10*K17),3)) -> 
A18: Сыр "Полар" 10% | B18: Сыр "Валио Полар" 10% полутвердый | C18: Т | D18: 772 | E18: Наруш | F18: 10 | G18: 32 | H18: 0 | J18: 220 | K18: 100 | L18: 220 | M18: 145 | N18: 10 | O18: 32 | P18: 0 | Q18: 0 | R18: 218 | S18: 224.2 | BF18: =OFFSET(BF18,,-$BF$1) -> 0 | BG18: 0 | BH18: 0 | BI18: =$N18*BF18 -> 0 | BJ18: =$O18*BF18 -> 0 | BK18: =$P18*BF18 -> 0 | BL18: =E18 -> Наруш | BM18: =TRIM(A18) -> Сыр "Полар" 10% | BO18: =IF(BN18<>0,BH18,0) -> 0 | BP18: =IF(BN18<>0,BG18,0) -> 0 | BQ18: =SUM(OFFSET(BF18,,-$BQ$1,,$BQ$1))>0 -> FALSE | BR18: =IF(COUNT(BS18:CB18)=0,"",ROUND(SUM(BS18:CB18)/(10*K18),3)) -> 
A19: Сыр "Полар" 15% (100 !!!) | B19: Сыр "Валио Полар" 15% полутвердый | C19: Т | D19: 13 | E19: Наруш | F19: 15 | G19: 31 | H19: 0 | J19: 260 | K19: 100 | L19: 260 | M19: 145 | N19: 15 | O19: 31 | P19: 0 | Q19: 0 | R19: 259 | S19: 266.6 | AT19: 0.372 | AU19: 0.211 | AX19: 0.252 | AZ19: 1.142 | BF19: =OFFSET(BF19,,-$BF$1) -> 0 | BG19: 0 | BH19: 0 | BI19: =$N19*BF19 -> 0 | BJ19: =$O19*BF19 -> 0 | BK19: =$P19*BF19 -> 0 | BL19: =E19 -> Наруш | BM19: =TRIM(A19) -> Сыр "Полар" 15% (100 !!!) | BO19: =IF(BN19<>0,BH19,0) -> 0 | BP19: =IF(BN19<>0,BG19,0) -> 0 | BQ19: =SUM(OFFSET(BF19,,-$BQ$1,,$BQ$1))>0 -> TRUE | BR19: =IF(COUNT(BS19:CB19)=0,"",ROUND(SUM(BS19:CB19)/(10*K19),3)) -> 
A20: Сыр плавленный "Полар" 9% (фин) | B20: Сыр плавленный "Полар" 9% (фин) | C20: Т | D20: 14 | E20: Наруш | F20: 9 | G20: 18 | H20: 0 | J20: 153 | K20: 100 | L20: 153 | M20: 50 | N20: 9 | O20: 18 | P20: 0 | Q20: 0 | R20: 153 | S20: 157.5 | BF20: =OFFSET(BF20,,-$BF$1) -> 0 | BG20: 0 | BH20: 0 | BI20: =$N20*BF20 -> 0 | BJ20: =$O20*BF20 -> 0 | BK20: =$P20*BF20 -> 0 | BL20: =E20 -> Наруш | BM20: =TRIM(A20) -> Сыр плавленный "Полар" 9% (фин) | BO20: =IF(BN20<>0,BH20,0) -> 0 | BP20: =IF(BN20<>0,BG20,0) -> 0 | BQ20: =SUM(OFFSET(BF20,,-$BQ$1,,$BQ$1))>0 -> FALSE | BR20: =IF(COUNT(BS20:CB20)=0,"",ROUND(SUM(BS20:CB20)/(10*K20),3)) -> 
BN21: FALSE
A22: Сыр "Сан Морэ" 8% | B22: Сыр свежий "Сан Морэ" облегченный 8% (150 г) | C22: Т | D22: 15 | E22: Сыры | F22: 8 | G22: 10.5 | H22: 4.5 | J22: 132 | K22: 100 | L22: 132 | M22: 130 | N22: 8 | O22: 10.5 | P22: 4.5 | Q22: 0 | R22: 132 | S22: 135.9 | BF22: =OFFSET(BF22,,-$BF$1) -> 0 | BG22: 0 | BH22: 0 | BI22: =$N22*BF22 -> 0 | BJ22: =$O22*BF22 -> 0 | BK22: =$P22*BF22 -> 0 | BL22: =E22 -> Сыры | BM22: =TRIM(A22) -> Сыр "Сан Морэ" 8% | BO22: =IF(BN22<>0,BH22,0) -> 0 | BP22: =IF(BN22<>0,BG22,0) -> 0 | BQ22: =SUM(OFFSET(BF22,,-$BQ$1,,$BQ$1))>0 -> FALSE | BR22: =IF(COUNT(BS22:CB22)=0,"",ROUND(SUM(BS22:CB22)/(10*K22),3)) -> 
A23: Сыр ATLEET Light | B23: Сыр ATLEET Light (100 г) Валио | C23: Т | D23: 16 | E23: Наруш | F23: 19 | G23: 30 | H23: 0 | J23: 292 | K23: 100 | L23: 292 | M23: 50 | N23: 19 | O23: 30 | P23: 0 | Q23: 0 | R23: 291 | S23: 299.7 | BF23: =OFFSET(BF23,,-$BF$1) -> 0 | BG23: 0 | BH23: 0 | BI23: =$N23*BF23 -> 0 | BJ23: =$O23*BF23 -> 0 | BK23: =$P23*BF23 -> 0 | BL23: =E23 -> Наруш | BM23: =TRIM(A23) -> Сыр ATLEET Light | BO23: =IF(BN23<>0,BH23,0) -> 0 | BP23: =IF(BN23<>0,BG23,0) -> 0 | BQ23: =SUM(OFFSET(BF23,,-$BQ$1,,$BQ$1))>0 -> FALSE | BR23: =IF(COUNT(BS23:CB23)=0,"",ROUND(SUM(BS23:CB23)/(10*K23),3)) -> 
A24: Сыр KADETT 10% (фин, Arla) | B24: Сыр KADETT 10% (фин, Arla) | C24: Т | D24: 672 | E24: Наруш | F24: 10 | G24: 32 | H24: 0 | J24: 220 | K24: 100 | L24: 220 | M24: 50 | N24: 10 | O24: 32 | P24: 0 | Q24: 0 | R24: 218 | S24: 224.2 | BF24: =OFFSET(BF24,,-$BF$1) -> 0 | BG24: 0 | BH24: 0 | BI24: =$N24*BF24 -> 0 | BJ24: =$O24*BF24 -> 0 | BK24: =$P24*BF24 -> 0 | BL24: =E24 -> Наруш | BM24: =TRIM(A24) -> Сыр KADETT 10% (фин, Arla) | BO24: =IF(BN24<>0,BH24,0) -> 0 | BP24: =IF(BN24<>0,BG24,0) -> 0 | BQ24: =SUM(OFFSET(BF24,,-$BQ$1,,$BQ$1))>0 -> FALSE | BR24: =IF(COUNT(BS24:CB24)=0,"",ROUND(SUM(BS24:CB24)/(10*K24),3)) -> 
A25: Сыр копченый "Гурманам" 45% (Сваля) | B25: Сыр копченый "Гурманам" 45% (Сваля) | C25: Т | D25: 733 | E25: Наруш | F25: 21.6 | G25: 20.9 | H25: 1 | J25: 282 | K25: 100 | L25: 282 | M25: 50 | N25: 21.6 | O25: 20.9 | P25: 1 | Q25: 0 | R25: 282 | S25: 290.67 | BF25: =OFFSET(BF25,,-$BF$1) -> 0 | BG25: 0 | BH25: 0 | BI25: =$N25*BF25 -> 0 | BJ25: =$O25*BF25 -> 0 | BK25: =$P25*BF25 -> 0 | BL25: =E25 -> Наруш | BM25: =TRIM(A25) -> Сыр копченый "Гурманам" 45% (Сваля) | BO25: =IF(BN25<>0,BH25,0) -> 0 | BP25: =IF(BN25<>0,BG25,0) -> 0 | BQ25: =SUM(OFFSET(BF25,,-$BQ$1,,$BQ$1))>0 -> FALSE | BR25: =IF(COUNT(BS25:CB25)=0,"",ROUND(SUM(BS25:CB25)/(10*K25),3)) -> 
A26: Сыр "Балтия" 43% (Сваля) | B26: Сыр "Балтия" 43% (Сваля) голубая пачка; 1 кусочек = 24 гр | C26: Т | D26: 17 | E26: Наруш | F26: 25.2 | G26: 26.5 | H26: 0 | J26: 333 | K26: 100 | L26: 333 | M26: 50 | N26: 25.2 | O26: 26.5 | P26: 0 | Q26: 0 | R26: 332.8 | S26: 343.01 | BF26: =OFFSET(BF26,,-$BF$1) -> 0 | BG26: 0 | BH26: 0 | BI26: =$N26*BF26 -> 0 | BJ26: =$O26*BF26 -> 0 | BK26: =$P26*BF26 -> 0 | BL26: =E26 -> Наруш | BM26: =TRIM(A26) -> Сыр "Балтия" 43% (Сваля) | BO26: =IF(BN26<>0,BH26,0) -> 0 | BP26: =IF(BN26<>0,BG26,0) -> 0 | BQ26: =SUM(OFFSET(BF26,,-$BQ$1,,$BQ$1))>0 -> FALSE | BR26: =IF(COUNT(BS26:CB26)=0,"",ROUND(SUM(BS26:CB26)/(10*K26),3)) -> 
A27: Сыр "Российский" 45% (Сваля) | B27: Сыр "Российский" 45% (Сваля); одним куском | C27: Т | D27: 18 | E27: Наруш | F27: 25.2 | G27: 26.5 | H27: 0 | J27: 333 | K27: 100 | L27: 333 | M27: 50 | N27: 25.2 | O27: 26.5 | P27: 0 | Q27: 0 | R27: 332.8 | S27: 343.01 | AB27: 0.939 | AC27: 0.445 | AD27: 0.822 | AE27: 0.322 | BF27: =OFFSET(BF27,,-$BF$1) -> 0 | BG27: 0 | BH27: 0 | BI27: =$N27*BF27 -> 0 | BJ27: =$O27*BF27 -> 0 | BK27: =$P27*BF27 -> 0 | BL27: =E27 -> Наруш | BM27: =TRIM(A27) -> Сыр "Российский" 45% (Сваля) | BO27: =IF(BN27<>0,BH27,0) -> 0 | BP27: =IF(BN27<>0,BG27,0) -> 0 | BQ27: =SUM(OFFSET(BF27,,-$BQ$1,,$BQ$1))>0 -> FALSE | BR27: =IF(COUNT(BS27:CB27)=0,"",ROUND(SUM(BS27:CB27)/(10*K27),3)) -> 
A28: Сыр cливочный Laime 45% (Германия, Литва) | B28: Сыр cливочный Laime 45% (Германия, Литва) | C28: Т | D28: 19 | E28: Наруш | F28: 27 | G28: 26 | H28: 0.1 | J28: 347 | K28: 100 | L28: =ROUND(J28*K28/100,) -> 347 | M28: 50 | N28: =ROUND(F28*K28/100,1) -> 27 | O28: =ROUND(G28*K28/100,1) -> 26 | P28: =ROUND(H28*K28/100,1) -> 0.1 | Q28: 0 | R28: 347.4 | S28: 358.11 | BF28: =OFFSET(BF28,,-$BF$1) -> 0 | BG28: 0 | BH28: 0 | BI28: =$N28*BF28 -> 0 | BJ28: =$O28*BF28 -> 0 | BK28: =$P28*BF28 -> 0 | BL28: =E28 -> Наруш | BM28: =TRIM(A28) -> Сыр cливочный Laime 45% (Германия, Литва) | BO28: =IF(BN28<>0,BH28,0) -> 0 | BP28: =IF(BN28<>0,BG28,0) -> 0 | BQ28: =SUM(OFFSET(BF28,,-$BQ$1,,$BQ$1))>0 -> FALSE | BR28: =IF(COUNT(BS28:CB28)=0,"",ROUND(SUM(BS28:CB28)/(10*K28),3)) -> 
A29: Сыр cливочный Laime 45% (Литва) | B29: Сыр cливочный Laime 45% (Литва) | C29: Т | D29: 20 | E29: Наруш | F29: 24.5 | G29: 25.7 | H29: 0.1 | J29: 332 | K29: 100 | L29: =ROUND(J29*K29/100,) -> 332 | M29: 50 | N29: =ROUND(F29*K29/100,1) -> 24.5 | O29: =ROUND(G29*K29/100,1) -> 25.7 | P29: =ROUND(H29*K29/100,1) -> 0.1 | Q29: 0 | R29: 323.7 | S29: 333.63 | BF29: =OFFSET(BF29,,-$BF$1) -> 0 | BG29: 0 | BH29: 0 | BI29: =$N29*BF29 -> 0 | BJ29: =$O29*BF29 -> 0 | BK29: =$P29*BF29 -> 0 | BL29: =E29 -> Наруш | BM29: =TRIM(A29) -> Сыр cливочный Laime 45% (Литва) | BO29: =IF(BN29<>0,BH29,0) -> 0 | BP29: =IF(BN29<>0,BG29,0) -> 0 | BQ29: =SUM(OFFSET(BF29,,-$BQ$1,,$BQ$1))>0 -> FALSE | BR29: =IF(COUNT(BS29:CB29)=0,"",ROUND(SUM(BS29:CB29)/(10*K29),3)) -> 
A30: Сыр cливочный Арла Натура 45% | B30: Сыр cливочный Арла Натура | C30: Т | D30: 753 | E30: Наруш | F30: 25 | G30: 24 | H30: 0.1 | J30: 330 | K30: 100 | L30: =ROUND(J30*K30/100,) -> 330 | M30: 50 | N30: =ROUND(F30*K30/100,1) -> 25 | O30: =ROUND(G30*K30/100,1) -> 24 | P30: =ROUND(H30*K30/100,1) -> 0.1 | Q30: 0 | R30: 321.4 | S30: 331.31 | BF30: =OFFSET(BF30,,-$BF$1) -> 0 | BG30: 0 | BH30: 0 | BI30: =$N30*BF30 -> 0 | BJ30: =$O30*BF30 -> 0 | BK30: =$P30*BF30 -> 0 | BL30: =E30 -> Наруш | BM30: =TRIM(A30) -> Сыр cливочный Арла Натура 45% | BO30: =IF(BN30<>0,BH30,0) -> 0 | BP30: =IF(BN30<>0,BG30,0) -> 0 | BQ30: =SUM(OFFSET(BF30,,-$BQ$1,,$BQ$1))>0 -> FALSE | BR30: =IF(COUNT(BS30:CB30)=0,"",ROUND(SUM(BS30:CB30)/(10*K30),3)) -> 
